bitfinex-derivatives/quotes_SOLF0:USTF0_20241002
["timestamp","ask_amount","ask_price","bid_price","bid_amount"]
[1727862484964,6.42,146.01,145.99,3.4251]
[1727862485167,6.42,146.01,145.93,3.9463]
[1727862485168,24.4543,146.04,145.93,24.9763]
[1727862485466,27.45,146.04,145.93,24.9763]
[1727862485964,3.4246,146.03,145.99,3.4252]
[1727862486557,30.8743,146.04,145.99,3.4252]
[1727862486963,21.03,146.07,145.93,31.8043]
[1727862487159,9.8439,146.06,146.02,3.4245]
[1727862487464,6.42,146.06,145.96,6.42]
[1727862487766,3.424,146.05,146.01,3.4247]
[1727862487956,6.42,146.06,145.96,6.42]
[1727862488356,9.8439,146.06,146.02,3.4246]
[1727862489065,9.8435,146.07,146.03,3.4244]
[1727862489370,27.57502,146.09,145.97,21.15502]
[1727862489563,30.99812,146.09,146.05,3.4239]
[1727862489754,6.54502,146.09,146.0,27.45]
[1727862489958,0.12502,146.09,146.01,3.9814]
[1727862490157,0.12502,146.09,146.08,3.4232]
[1727862491062,101.45,146.14,146.07,3.4235]
[1727862491265,104.8719,146.14,146.08,1.3457]
[1727862491460,9.8419,146.14,146.08,1.3457]
[1727862491665,9.8419,146.14,146.1,3.4226]
[1727862491867,3.4221,146.13,146.1,3.4226]
[1727862492067,6.42,146.14,146.11,3.4224]
[1727862492268,6.54502,146.15,146.11,3.4224]
[1727862492563,9.96672,146.15,146.11,3.4224]
[1727862492764,6.54502,146.15,146.09,1.2866]
[1727862492962,3.4221,146.13,146.1,3.4227]
[1727862493161,6.54502,146.15,146.09,1.2866]
[1727862494268,3.4222,146.13,146.09,4.7095]
[1727862494872,3.4223,146.12,146.09,4.7095]
[1727862495475,3.4222,146.13,146.09,4.7095]
[1727862497271,27.45,146.14,146.08,1.3457]
[1727862497470,21.03,146.11,146.04,1.3206]
[1727862497666,6.4,146.1,146.04,1.3206]
[1727862497974,6.4,146.1,146.04,4.7446]
[1727862498271,3.4234,146.08,146.04,4.7447]
[1727862498475,3.4234,146.08,146.04,1.3206]
[1727862498675,6.4,146.1,146.04,1.3206]
[1727862498873,9.8228,146.1,146.04,1.3206]
[1727862499275,6.4,146.1,146.04,1.3206]
[1727862499476,3.4233,146.08,146.05,3.4238]
[1727862500181,3.4233,146.08,146.04,4.7447]
[1727862500475,6.4,146.1,146.04,1.3206]
[1727862500675,3.4236,146.07,146.04,1.3206]
[1727862501181,3.4236,146.07,146.04,4.7446]
[1727862502082,3.4241,146.05,146.03,1.46712]
[1727862502477,6.14,146.05,146.03,0.12502]
[1727862503184,3.4242,146.04,146.03,0.12502]
[1727862505188,9.5642,146.04,146.03,0.12502]
[1727862507986,21.03,146.08,146.03,0.12502]
[1727862508183,6.14,146.06,146.03,0.12502]
[1727862508490,3.4239,146.05,146.03,0.12502]
[1727862508882,6.14,146.06,146.03,0.12502]
[1727862509085,9.5635,146.07,146.04,3.4242]
[1727862509282,73.96,146.12,146.03,0.12502]
[1727862509483,6.14,146.11,146.06,3.4236]
[1727862509795,6.14,146.11,146.03,0.12502]
[1727862510092,3.4234,146.08,146.03,0.12502]
[1727862510394,6.14,146.11,146.03,0.12502]
[1727862510686,3.423,146.09,146.06,3.4236]
[1727862511079,6.14,146.11,146.04,2.5946]
[1727862511278,3.4226,146.11,146.09,3.4229]
[1727862511486,6.14,146.12,146.09,3.4229]
[1727862511683,6.14,146.12,146.05,1.3606]
[1727862511887,3.4227,146.11,146.08,3.4231]
[1727862512081,6.14,146.13,146.05,1.3606]
[1727862512295,9.54465402,146.13,146.05,1.3606]
[1727862512489,3.4235,146.07,146.05,1.3606]
[1727862512791,6.14,146.09,146.04,1.3152]
[1727862512985,3.4239,146.05,146.03,0.12502]
[1727862513192,6.14,146.07,146.03,0.12502]
[1727862513491,3.4242,146.04,146.03,0.12502]
[1727862513787,21.03,146.04,145.97,3.55072]
[1727862514093,3.4254,145.99,145.97,0.12502]
[1727862514493,6.14,146.03,145.97,0.12502]
[1727862514689,3.4252,146.0,145.97,3.55072]
[1727862515999,6.14,146.03,145.97,0.12502]
[1727862516291,21.03,146.01,145.97,0.12502]
[1727862516802,3.4256,145.98,145.97,0.12502]
[1727862516989,9.5656,145.98,145.97,0.12502]
[1727862519201,6.14,145.98,145.97,0.12502]
[1727862519694,9.5656,145.98,145.97,0.12502]
[1727862520497,6.14,145.98,145.97,0.12502]
[1727862521399,9.5656,145.98,145.97,0.12502]
[1727862522302,3.4261,145.96,145.91,1.51402]
[1727862522500,3.4261,145.96,145.93,3.4267]
[1727862522698,6.14,145.98,145.91,1.51402]
[1727862523504,3.426,145.97,145.93,3.4267]
[1727862523695,6.14,145.98,145.91,1.51402]
[1727862524094,27.19,145.99,145.91,1.51402]
[1727862524396,6.16,146.0,145.91,7.67402]
[1727862524594,9.5852,146.0,145.97,3.4256]
[1727862524900,3.4252,146.0,145.97,3.4256]
[1727862525297,27.19,146.02,145.91,7.67402]
[1727862525495,3.4254,145.99,145.91,7.67402]
[1727862525994,3.4251,146.0,145.91,7.67402]
[1727862526300,27.19,146.02,145.91,7.67402]
[1727862526495,3.4255,145.99,145.94,3.4265]
[1727862526697,3.4255,145.99,145.91,7.67402]
[1727862526896,27.19,146.02,145.91,7.67402]
[1727862527397,21.03,145.99,145.91,1.51402]
[1727862527596,21.03,145.97,145.91,1.51402]
[1727862527796,27.19,145.97,145.91,1.51402]
[1727862528204,27.19,145.97,145.91,0.12502]
[1727862528894,3.4264,145.95,145.92,3.4269]
[1727862529501,3.4267,145.94,145.91,3.55222]
[1727862529702,3.4267,145.94,145.91,0.12502]
[1727862530104,3.4267,145.94,145.91,3.55212]
[1727862531296,27.19,145.97,145.92,3.427]
[1727862531297,3.4265,145.95,145.92,3.427]
[1727862531611,27.19,145.97,145.91,0.12502]
[1727862532503,3.427,145.92,145.91,0.12502]
[1727862533100,6.0,145.93,145.91,0.12502]
[1727862533299,9.4269,145.93,145.91,0.12502]
[1727862533607,27.03,145.93,145.85,0.12502]
[1727862533812,3.4281,145.88,145.85,0.12502]
[1727862534007,21.03,145.9,145.85,0.12502]
[1727862534306,3.4284,145.86,145.85,0.12502]
[1727862534504,9.4284,145.86,145.85,0.12502]
[1727862536906,3.4295,145.82,145.8,1.12518]
[1727862537512,3.4296,145.81,145.8,1.12518]
[1727862539214,3.4293,145.83,145.8,4.55498]
[1727862539524,27.03,145.86,145.8,1.12518]
[1727862539817,6.02,145.85,145.8,1.12518]
[1727862540220,3.429,145.84,145.81,3.4296]
[1727862540420,21.03,145.88,145.8,1.12518]
[1727862540633,6.02,145.88,145.8,1.12518]
[1727862542026,74.06,145.9,145.87,3.428]
[1727862542027,3.4275,145.9,145.87,3.428]
[1727862542225,6.14502,145.91,145.8,22.15518]
[1727862542426,0.12502,145.91,145.83,27.05]
[1727862542721,0.12502,145.91,145.9,3.4275]
[1727862542921,95.09,145.98,145.87,27.05]
[1727862543116,3.4262,145.96,145.93,3.4267]
[1727862543325,6.14502,145.97,145.87,27.05]
[1727862544130,6.14502,145.97,145.87,6.02]
[1727862544327,3.4264,145.95,145.87,6.02]
[1727862544518,6.14502,145.97,145.87,6.02]
[1727862544724,9.57102,145.97,145.87,6.02]
[1727862544926,6.14502,145.97,145.87,6.02]
[1727862545222,3.4269,145.93,145.88,3.4278]
[1727862545526,3.4269,145.93,145.85,6.14502]
[1727862546031,3.4269,145.93,145.87,3.4281]
[1727862546323,3.4269,145.93,145.85,6.14502]
[1727862546923,3.4267,145.94,145.9,3.4273]
[1727862547318,6.14502,145.97,145.85,6.14502]
[1727862547531,3.4265,145.94,145.85,0.12502]
[1727862547729,6.14502,145.97,145.86,27.05]
[1727862548025,0.12502,145.97,145.86,27.05]
[1727862548533,3.55092,145.97,145.93,3.4266]
[1727862548727,0.12502,145.97,145.93,3.4266]
[1727862548928,0.12502,145.97,145.88,21.03]
[1727862549734,0.12502,145.97,145.94,3.4264]
[1727862550227,0.12502,145.97,145.91,6.02]
[1727862550430,0.12502,145.97,145.92,3.8555]
[1727862550824,21.15502,146.03,145.92,3.8555]
[1727862551025,27.17502,146.03,145.92,3.8555]
[1727862551224,3.4248,146.02,145.98,3.4254]
[1727862551620,27.17502,146.03,145.98,3.4254]
[1727862553026,27.17502,146.03,146.0,3.4251]
[1727862553231,6.14502,146.03,146.0,3.4251]
[1727862553428,6.14502,146.03,145.95,6.02]
[1727862553628,6.14502,146.03,145.99,3.4253]
[1727862553822,6.14502,146.03,145.95,6.02]
[1727862553823,0.12502,146.03,145.95,27.05]
[1727862554433,0.12502,146.03,145.95,30.4197458]
[1727862554831,0.12502,146.03,146.02,3.4247]
[1727862555534,0.12502,146.03,145.95,6.02]
[1727862556027,0.12502,146.03,145.95,9.39454113]
[1727862556229,0.12502,146.03,145.95,30.42454113]
[1727862556531,0.12502,146.03,145.95,6.02]
[1727862557032,21.03,146.0,145.92,3.8555]
[1727862557735,3.4255,145.99,145.92,3.8555]
[1727862558041,21.03,146.0,145.95,3.4262]
[1727862558331,21.03,146.0,145.92,3.8555]
[1727862558525,21.03,146.0,145.96,3.426]
[1727862558728,3.4256,145.98,145.92,3.8555]
[1727862558931,21.03,146.0,145.92,3.8555]
[1727862559742,21.03,146.0,145.94,3.4264]
[1727862560033,21.03,146.0,145.92,3.8555]
[1727862560234,3.4256,145.98,145.95,3.4262]
[1727862560424,21.03,146.0,145.92,3.8555]
[1727862560627,6.16,145.99,145.92,3.8555]
[1727862561134,21.03,145.97,145.91,0.12502]
[1727862561530,3.4267,145.94,145.91,0.12502]
[1727862561935,21.03,145.97,145.91,0.12502]
[1727862562130,3.427,145.92,145.91,0.12502]
[1727862562936,3.4268,145.93,145.91,0.12502]
[1727862563126,27.19,145.95,145.91,0.12502]
[1727862563533,3.4267,145.94,145.91,0.12502]
[1727862563842,27.19,145.95,145.91,0.12502]
[1727862564136,6.16,145.96,145.91,0.12502]
[1727862564328,27.19,145.97,145.91,0.12502]
[1727862564531,3.4262,145.96,145.91,0.12502]
[1727862564733,27.19,145.97,145.91,0.12502]
[1727862564946,27.19,145.97,145.93,3.4266]
[1727862565133,3.4264,145.95,145.91,0.12502]
[1727862565335,27.19,145.97,145.91,0.12502]
[1727862565531,3.4269,145.93,145.91,0.12502]
[1727862565733,27.19,145.97,145.91,0.12502]
[1727862566134,3.4262,145.96,145.91,0.12502]
[1727862566335,27.19,145.97,145.91,0.12502]
[1727862566735,3.4266,145.94,145.91,3.55222]
[1727862568441,3.4264,145.95,145.93,3.4267]
[1727862568638,27.19,145.97,145.91,0.12502]
[1727862569734,3.4268,145.93,145.91,0.12502]
[1727862570339,27.19,145.97,145.91,0.12502]
[1727862570537,21.03,145.95,145.91,0.12502]
[1727862571540,3.4268,145.93,145.91,3.55212]
[1727862571743,21.03,145.95,145.91,3.55212]
[1727862572246,27.19,145.97,145.91,0.12502]
[1727862572643,3.4268,145.93,145.91,0.12502]
[1727862573250,3.4266,145.94,145.91,3.55212]
[1727862573444,27.19,145.97,145.91,0.12502]
[1727862573645,27.19,145.97,145.92,3.4268]
[1727862573646,13.17,145.97,145.92,3.4268]
[1727862573951,3.4262,145.96,145.91,0.12502]
[1727862574245,19.33,145.97,145.91,0.12502]
[1727862574246,3.4265,145.95,145.92,3.4269]
[1727862574443,19.33,145.97,145.91,0.12502]
[1727862574842,3.4267,145.94,145.91,3.55202]
[1727862575642,3.4264,145.95,145.93,3.4267]
[1727862576053,19.33,145.97,145.93,3.4267]
[1727862576248,3.4261,145.96,145.93,3.4267]
[1727862576943,3.4263,145.95,145.93,3.4267]
[1727862577145,13.17,145.98,145.94,3.4264]
[1727862577450,3.4259,145.97,145.91,6.28502]
[1727862577957,3.4262,145.96,145.93,3.4267]
[1727862578849,3.4264,145.95,145.93,3.4267]
[1727862579050,13.17,145.98,145.93,3.4267]
[1727862579545,3.4262,145.96,145.93,3.4267]
[1727862580753,3.4262,145.96,145.91,6.28502]
[1727862580941,13.17,145.98,145.91,6.28502]
[1727862581148,3.4259,145.97,145.91,6.28502]
[1727862581546,3.4257,145.98,145.95,3.4262]
[1727862581746,3.4257,145.98,145.91,19.45502]
[1727862581952,13.17,146.0,145.91,19.45502]
[1727862582151,3.4255,145.99,145.96,3.4259]
[1727862582348,13.17,146.02,145.93,16.56167922]
[1727862582549,13.17,146.02,145.94,1.285]
[1727862582858,3.4251,146.0,145.97,3.4258]
[1727862583261,6.28502,146.03,145.95,21.9802]
[1727862583455,9.70962,146.03,146.0,3.425]
[1727862583757,3.54962,146.03,146.0,3.425]
[1727862583956,3.54962,146.03,145.95,21.9802]
[1727862583957,0.12502,146.03,145.95,21.9802]
[1727862584155,3.4248,146.02,145.95,21.9802]
[1727862585056,0.12502,146.03,145.95,21.9802]
[1727862585057,3.54952,146.03,145.95,21.9802]
[1727862585253,0.12502,146.03,145.95,21.9802]
[1727862585656,3.4252,146.0,145.97,3.4257]
[1727862585852,3.4252,146.0,145.95,21.9802]
[1727862586052,3.4252,146.0,145.97,3.4257]
[1727862588265,3.4252,146.0,145.95,21.9802]
[1727862588457,3.4252,146.0,145.98,3.4256]
[1727862588764,3.4252,146.0,145.95,21.9802]
[1727862588953,3.4252,146.0,145.97,3.4257]
[1727862589154,0.12502,146.03,145.95,8.8102]
[1727862589155,13.17,146.02,145.95,8.8102]
[1727862589464,13.17,146.0,145.95,8.8102]
[1727862589764,3.4256,145.98,145.95,8.8102]
[1727862590169,3.4256,145.98,145.96,3.426]
[1727862590667,3.4254,145.99,145.96,3.426]
[1727862590970,13.17,146.0,145.95,6.0764]
[1727862591263,3.4256,145.98,145.95,6.0764]
[1727862592062,3.425,146.01,145.98,3.4255]
[1727862592265,19.33,146.02,145.95,2.6502]
[1727862592469,3.4254,145.99,145.96,3.4259]
[1727862592657,3.4254,145.99,145.95,2.6502]
[1727862592972,19.33,146.02,145.95,2.6502]
[1727862593176,3.4253,146.0,145.95,2.6502]
[1727862593669,3.4253,146.0,145.97,3.4257]
[1727862594762,3.4254,145.99,145.97,3.4257]
[1727862595866,9.5848,146.02,145.99,3.4252]
[1727862596068,6.16,146.02,145.95,2.6502]
[1727862596466,3.4253,146.0,145.97,3.4257]
[1727862596666,6.16,146.02,145.95,2.6502]
[1727862597165,3.4255,145.99,145.95,2.6502]
[1727862597563,19.33,146.02,145.95,2.6502]
[1727862597765,13.17,145.99,145.95,2.6502]
[1727862598167,3.426,145.97,145.95,2.6502]
[1727862598370,13.17,145.99,145.95,2.6502]
[1727862599366,3.426,145.97,145.95,2.6502]
[1727862599560,13.17,145.99,145.92,5.94]
[1727862599966,13.17,145.99,145.91,2.77392]
[1727862600176,13.17,145.98,145.91,2.77392]
[1727862600374,19.11,145.98,145.91,2.77392]
[1727862600569,13.17,145.96,145.91,0.12502]
[1727862601072,3.4269,145.93,145.91,0.12502]
[1727862601680,3.427,145.92,145.91,0.12502]
[1727862602067,13.17,145.96,145.91,0.12502]
[1727862602370,3.4269,145.93,145.91,0.12502]
[1727862602572,19.11,145.98,145.91,0.12502]
[1727862602772,3.4267,145.94,145.91,3.55212]
[1727862603277,3.4259,145.97,145.91,0.12502]
[1727862603468,13.17,146.02,145.92,13.17]
[1727862603668,6.06502,146.03,145.94,13.17]
[1727862603968,6.06502,146.03,145.93,2.6278]
[1727862603969,13.17,146.02,145.95,1.3971]
[1727862604169,13.17,146.0,145.95,1.3971]
[1727862604379,3.426,145.97,145.94,3.4264]
[1727862604670,13.17,146.0,145.93,2.6278]
[1727862605073,13.17,145.98,145.93,1.3389]
[1727862605574,13.17,145.98,145.91,6.06502]
[1727862605777,13.17,145.96,145.91,6.06502]
[1727862606075,3.4267,145.94,145.91,9.49212]
[1727862606374,13.17,145.98,145.91,6.06502]
[1727862606869,13.17,145.96,145.91,0.12502]
[1727862607271,19.11,145.95,145.91,0.12502]
[1727862607664,5.94,145.95,145.91,0.12502]
[1727862607978,3.4259,145.97,145.94,3.4264]
[1727862608175,19.11,145.98,145.94,3.4264]
[1727862608472,19.11,145.98,145.91,0.12502]
[1727862608672,19.11,145.98,145.94,3.4264]
[1727862608881,5.94,145.98,145.91,0.12502]
[1727862609186,0.50012,146.03,145.92,13.17]
[1727862609376,19.61012,146.03,145.94,13.17]
[1727862609568,19.23502,146.03,145.99,3.4253]
[1727862609767,6.06502,146.03,145.99,3.4253]
[1727862609967,0.12502,146.03,145.98,19.11]
[1727862610275,0.12502,146.03,146.0,13.17]
[1727862610476,0.12502,146.03,146.02,16.5947]
[1727862611070,0.12502,146.03,146.01,2.6212]
[1727862611970,0.12502,146.03,146.01,15.7912]
[1727862612372,3.4234,146.08,146.04,3.424]
[1727862613278,0.12502,146.09,146.04,3.424]
[1727862613477,0.12502,146.09,146.03,3.4243]
[1727862613478,3.4236,146.07,146.03,3.4243]
[1727862614470,0.12502,146.09,146.01,15.7912]
[1727862614471,13.29502,146.09,146.01,15.7912]
[1727862614676,13.29502,146.09,146.01,8.5612]
[1727862614873,0.12502,146.09,146.01,8.5612]
[1727862615076,3.4234,146.08,146.01,8.5612]
[1727862615273,13.17,146.08,146.01,21.7312]
[1727862615477,13.17,146.08,146.01,2.6212]
[1727862616086,3.4242,146.05,146.01,2.6212]
[1727862616286,13.17,146.08,146.01,6.046]
[1727862616681,3.4242,146.05,146.01,6.046]
[1727862616882,13.17,146.08,146.01,6.046]
[1727862617085,3.4243,146.04,146.01,6.046]
[1727862618587,3.424,146.05,146.02,3.4245]
[1727862619083,3.424,146.05,146.03,3.4244]
[1727862619289,3.4239,146.06,146.03,3.4244]
[1727862619876,0.12502,146.09,146.04,3.4242]
[1727862619877,3.4236,146.07,146.04,3.4242]
[1727862620085,3.4236,146.07,146.01,15.7912]
[1727862620584,0.12502,146.09,146.02,14.4553]
[1727862620787,3.4233,146.08,146.03,5.86]
[1727862620977,3.4233,146.08,146.05,3.4238]
[1727862621182,0.12502,146.09,146.05,3.4238]
[1727862621381,3.4235,146.07,146.04,5.86]
[1727862621583,3.4235,146.07,146.04,9.284]
[1727862621984,3.4233,146.08,146.05,3.4239]
[1727862622183,0.12502,146.09,146.04,5.86]
[1727862622589,3.4234,146.08,146.05,3.4238]
[1727862622895,3.4234,146.08,146.04,5.86]
[1727862623095,3.4234,146.08,146.05,3.4238]
[1727862624089,0.12502,146.09,146.06,13.17]
[1727862624491,0.12502,146.15,146.06,13.17]
[1727862624791,0.12502,146.15,146.04,5.86]
[1727862624792,0.12502,146.15,146.08,13.17]
[1727862625093,0.12502,146.15,146.1,13.17]
[1727862625494,0.12502,146.15,146.13,3.422]
[1727862625994,0.12502,146.15,146.14,16.5918]
[1727862626200,0.12502,146.21,146.14,15.7705]
[1727862626402,0.12502,146.21,146.14,19.16648171]
[1727862626896,3.4209,146.19,146.15,3.4215]
[1727862627103,0.12502,146.21,146.14,21.6305]
[1727862627290,0.12502,146.21,146.14,2.6005]
[1727862627291,13.29502,146.21,146.14,2.6005]
[1727862627491,13.29502,146.21,146.09,0.12502]
[1727862627492,13.17,146.19,146.1,13.17]
[1727862627687,13.17,146.19,146.11,5.86]
[1727862627996,13.17,146.19,146.1,19.03]
[1727862628392,13.17,146.17,146.1,5.86]
[1727862628596,13.17,146.17,146.09,0.12502]
[1727862628804,13.17,146.17,146.09,5.98502]
[1727862629003,13.17,146.17,146.1,3.4227]
[1727862629193,13.17,146.19,146.1,13.17]
[1727862629394,3.421,146.18,146.14,3.4217]
[1727862629702,0.12502,146.21,146.14,3.4217]
[1727862629894,0.12502,146.21,146.13,5.86]
[1727862630601,0.12502,146.21,146.14,22.3514]
[1727862630992,3.4206,146.2,146.16,3.4211]
[1727862631392,3.4206,146.2,146.15,2.6637]
[1727862631591,3.4206,146.2,146.17,3.421]
[1727862631989,0.12502,146.21,146.15,2.6637]
[1727862632203,0.12502,146.21,146.18,3.4207]
[1727862632399,0.12502,146.21,146.17,5.86]
[1727862632600,0.12502,146.21,146.19,3.4205]
[1727862632807,0.12502,146.21,146.17,5.86]
[1727862633202,0.12502,146.21,146.2,3.4204]
[1727862635007,0.12502,146.21,146.2,9.2804]
[1727862635204,0.12502,146.27,146.2,9.2804]
[1727862635406,3.4197,146.24,146.21,3.4201]
[1727862635702,0.12502,146.27,146.2,7.1158]
[1727862635901,3.54402,146.27,146.21,21.03]
[1727862636103,0.12502,146.27,146.22,1.3047]
[1727862636497,0.12502,146.27,146.24,21.03]
[1727862636700,0.12502,146.33,146.27,3.4187]
[1727862637102,3.4181,146.31,146.27,3.4187]
[1727862637501,0.12502,146.33,146.27,3.4187]
[1727862637702,3.4181,146.31,146.26,1.2947]
[1727862638004,0.12502,146.33,146.28,3.4185]
[1727862638194,0.12502,146.33,146.27,5.86]
[1727862638394,3.4177,146.32,146.29,3.4182]
[1727862638797,0.12502,146.33,146.28,21.03]
[1727862639004,0.12502,146.33,146.31,3.4177]
[1727862639302,0.12502,146.33,146.29,1.2624]
[1727862639911,3.4178,146.32,146.29,1.2624]
[1727862640104,0.12502,146.33,146.3,5.86]
[1727862640502,3.54262,146.33,146.3,9.278]
[1727862640704,0.12502,146.33,146.29,1.2624]
[1727862641007,0.12502,146.33,146.26,22.3247]
[1727862641008,3.4188,146.27,146.26,1.2947]
[1727862641598,5.86,146.31,146.22,1.2624]
[1727862641807,26.89,146.31,146.22,1.2624]
[1727862642006,26.89,146.31,146.22,4.6823]
[1727862642802,26.89,146.31,146.22,1.2624]
[1727862643007,26.89,146.31,146.23,3.4196]
[1727862643403,3.4184,146.29,146.23,3.4196]
[1727862643607,5.86,146.31,146.23,1.3473]
[1727862645016,3.419,146.27,146.24,3.4193]
[1727862645211,5.86,146.31,146.23,1.3473]
[1727862645816,5.86,146.31,146.25,3.4191]
[1727862646209,5.86,146.31,146.24,5.86]
[1727862646515,3.4184,146.29,146.26,3.4189]
[1727862647017,5.86,146.31,146.24,5.86]
[1727862647018,3.4181,146.31,146.24,5.86]
[1727862647216,0.12502,146.33,146.23,2.6215]
[1727862647423,3.4195,146.25,146.23,2.6215]
[1727862647605,21.03,146.32,146.23,2.6215]
[1727862647915,3.4192,146.26,146.23,6.0412]
[1727862648515,0.12502,146.33,146.26,3.419]
[1727862648715,0.12502,146.33,146.23,23.6515]
[1727862650421,0.12502,146.33,146.24,5.84]
[1727862651010,0.12502,146.33,146.24,9.2595]
[1727862651011,3.4189,146.27,146.24,9.2595]
[1727862651216,0.12502,146.33,146.24,5.84]
[1727862651415,3.4185,146.29,146.24,5.84]
[1727862651622,0.12502,146.33,146.24,5.84]
[1727862652114,3.4187,146.28,146.25,3.4191]
[1727862652819,3.4187,146.28,146.25,3.4192]
[1727862653018,3.4182,146.3,146.25,21.03]
[1727862653626,3.4182,146.3,146.27,3.4187]
[1727862654408,3.418,146.31,146.28,3.4184]
[1727862654609,0.12502,146.33,146.25,21.03]
[1727862655016,3.418,146.31,146.28,3.4185]
[1727862655212,0.12502,146.33,146.28,3.4185]
[1727862655816,0.12502,146.33,146.25,21.03]
[1727862656018,3.4181,146.3,146.27,3.4187]
[1727862657417,3.4183,146.29,146.27,3.4187]
[1727862657621,0.12502,146.33,146.26,3.4189]
[1727862657919,0.12502,146.33,146.25,21.03]
[1727862658227,0.12502,146.33,146.26,3.419]
[1727862658621,3.4186,146.29,146.26,3.419]
[1727862658816,0.12502,146.33,146.26,3.419]
[1727862660128,3.4187,146.28,146.26,3.419]
[1727862660935,21.03,146.32,146.23,2.6215]
[1727862661222,21.03,146.3,146.23,1.3473]
[1727862661527,3.4195,146.24,146.23,1.3473]
[1727862661828,3.4191,146.26,146.23,4.7668]
[1727862662027,3.4191,146.26,146.23,1.3473]
[1727862662625,3.4191,146.26,146.23,4.7669]
[1727862664125,3.4191,146.26,146.23,1.3473]
[1727862664925,3.4191,146.26,146.23,4.7669]
[1727862665831,5.84,146.32,146.23,1.3473]
[1727862666129,0.12502,146.33,146.25,21.01]
[1727862666330,0.12502,146.33,146.26,5.84]
[1727862666831,3.4186,146.29,146.26,9.259]
[1727862667019,0.12502,146.33,146.26,5.84]
[1727862668328,3.4187,146.28,146.26,9.259]
[1727862668528,0.12502,146.33,146.24,1.3933]
[1727862668725,21.01,146.32,146.23,10.607]
[1727862669536,21.01,146.32,146.23,7.1873]
[1727862669921,21.01,146.32,146.23,1.3473]
[1727862670522,21.8775,146.32,146.23,1.3473]
[1727862670721,21.8775,146.32,146.21,0.12502]
[1727862670722,21.01,146.24,146.21,0.12502]
[1727862670926,21.01,146.24,146.15,0.12502]
[1727862670927,3.4214,146.16,146.15,0.12502]
[1727862674939,9.2614,146.16,146.15,0.12502]
[1727862677543,3.4214,146.16,146.15,0.12502]
[1727862680640,3.4212,146.17,146.15,0.12502]
[1727862680845,21.7558,146.22,146.15,0.12502]
[1727862681033,5.8,146.21,146.15,0.12502]
[1727862681238,3.4214,146.16,146.15,0.12502]
[1727862684043,3.4212,146.17,146.15,0.12502]
[1727862684737,3.4214,146.16,146.15,0.12502]
[1727862685854,5.8,146.21,146.15,0.12502]
[1727862685855,5.8,146.2,146.15,0.12502]
[1727862686038,13.15,146.23,146.15,0.12502]
[1727862686237,5.8,146.22,146.15,0.12502]
[1727862686437,3.4205,146.2,146.17,3.421]
[1727862686638,18.95,146.23,146.15,0.12502]
[1727862686844,3.4198,146.23,146.18,13.15]
[1727862687045,3.4198,146.23,146.16,3.3894445]
[1727862687046,0.12502,146.27,146.2,13.15]
[1727862687549,3.4194,146.25,146.22,3.4198]